fUST/lending_fUST_20260130
["ID","MTS","AMOUNT","RATE_DAILY","PERIOD"]
[404005420,1769711991525,-203.22,0.00034779,30]
[404005421,1769711991559,-1041.66666667,0.00035,120]
[404005422,1769711991592,-200.0,0.00035014,120]
[404005423,1769711991625,-332.71,0.000351,30]
[404005424,1769711991657,-501.0,0.00035375,120]
[404005425,1769711991689,-160.0,0.00036466,89]
[404005426,1769711991720,-528.0,0.00037375,120]
[404005427,1769711991752,-555.0,0.00039375,120]
[404005428,1769711991789,-332.71,0.000398,30]
[404005429,1769711991823,-500.0,0.00039999,31]
[404005430,1769711991855,-167.21582835,0.00039999,31]
[404005431,1769711991887,-613.86919628,0.00039999,31]
[404005432,1769711991917,-620.62887862,0.00039999,31]
[404005433,1769711991948,-500.0,0.00039999,31]
[404005434,1769711991980,-500.0,0.00039999,31]
[404005435,1769711992012,-216.27042018,0.00039999,31]
[404005436,1769711992043,-1691.37708269,0.0004,120]
[404005437,1769711992074,-1041.66666667,0.0004,120]
[404005438,1769711992104,-1041.66666667,0.0004,30]
[404005439,1769711992136,-582.0,0.00041375,120]
[404005440,1769711992168,-609.0,0.00043375,120]
[404005441,1769711992198,-162.83,0.00044812,30]
[404005442,1769711992228,-334.41804512,0.00045375,120]
[404005443,1769711992259,-4166.4344,0.0004544,30]
[404005444,1769711992291,-211.81,0.00047398,120]
[404005445,1769711992322,-215.7329733,0.00049422,120]
[404005446,1769711992354,-325.66,0.00049613,30]
[404005447,1769711992389,-151.0,0.00050136,30]
[404005448,1769711992422,-151.0,0.00050684,31]
[404005449,1769711992454,-21990.695605,0.0005099,90]
[404005450,1769711992486,-1000.0,0.00051,120]
[404005451,1769711992517,-10001.80016215,0.000512,120]
[404005452,1769711992548,-151.0,0.00051232,32]
[404005453,1769711992580,-5000.0,0.000515,120]
[404005454,1769711992612,-282.41,0.0005158,120]
[404005455,1769711992643,-151.0,0.0005178,33]
[404005456,1769711992677,-1000.0,0.00052,120]
[404005457,1769711992708,-810.132,0.00052013,120]
[404005458,1769711992739,-179.0,0.00052013,120]
[404005459,1769711992771,-418.0,0.00052013,120]
[404005460,1769711992802,-151.0,0.00052328,34]
[404005461,1769711992833,-180.18018018,0.00052367,45]
[404005462,1769711992867,-20010.20520404,0.000525,120]
[404005463,1769711992899,-151.0,0.00052876,35]
[404005464,1769711992930,-1000.0,0.00053,120]
[404005465,1769711992960,-3639.7310615,0.00053,120]
[404005466,1769711992990,-151.0,0.00053424,36]
[404005467,1769711993021,-20000.0,0.000535,120]
[404005468,1769711993052,-5000.0,0.000535,120]
[404005469,1769711993083,-297.58975146,0.000535,60]
[404005470,1769711993113,-151.0,0.00053972,37]
[404005471,1769711993144,-903.8417503,0.00053995,120]
[404005472,1769711993177,-1000.0,0.00054,120]
[404005473,1769711993210,-488.49,0.00054415,30]
[404005474,1769711993242,-181.08010149,0.00054429,30]
[404005475,1769711993276,-174.61919141,0.0005443,30]
[404005476,1769711993309,-168.3888056,0.00054431,30]
[404005477,1769711993342,-10000.0,0.0005449,120]
[404005478,1769711993479,-1888.0,0.00054519,30]
[404005479,1769711993514,-156.587,0.00054519,30]
[404005480,1769711993549,-162.380719,0.00054519,120]
[404005481,1769711993585,-292.0,0.0005452,38]
[404005482,1769711993620,-500.0,0.00054794,120]
[404005483,1769711993656,-500.0,0.00054794,120]
[404005484,1769711993691,-500.0,0.00054794,120]
[404005485,1769711993726,-500.0,0.00054794,120]
[404005486,1769711993763,-500.0,0.00054794,120]
[404005487,1769711993803,-20000.0,0.00055,120]
[404005488,1769711993838,-1000.0,0.00055,120]
[404005489,1769711993876,-179.0,0.00055013,120]
[404005490,1769711993911,-418.0,0.00055013,120]
[404005491,1769711993947,-353.01,0.00055763,120]
[404005492,1769711993983,-1000.0,0.00056,120]
[404005493,1769711994018,-1000.0,0.00057,120]
[404005494,1769711994055,-151.0,0.00057523,120]
[404005495,1769711994089,-337.15308738,0.00057523,120]
[404005496,1769711994141,1998.99497601,0.00057524,120]
[404005497,1769711994192,1002.30986269,0.00057434,120]
[404005498,1769711996604,-2196.35171632,9.662e-05,2]
[404005499,1769711996629,-5607.30656736,9.662e-05,2]
[404005500,1769711997194,-300.0,9.662e-05,2]
[404005501,1769711997223,-300.0,9.662e-05,2]
[404005502,1769711997250,-300.0,9.662e-05,2]
[404005503,1769711998508,152.23,0.00044807,30]
[404005504,1769711998881,304.46,0.00049608,30]
[404005505,1769711999269,456.69,0.00054408,30]
[404005506,1769712003010,-300.0,9.663e-05,2]
[404005507,1769712003043,-300.0,9.664e-05,2]
[404005508,1769712003077,-300.0,9.664e-05,2]
[404005509,1769712003109,-300.0,9.664e-05,2]
[404005510,1769712003140,-300.0,9.664e-05,2]
[404005511,1769712003173,-300.0,9.664e-05,2]
[404005512,1769712003212,-300.0,9.664e-05,2]
[404005513,1769712003244,-300.0,9.664e-05,2]
[404005514,1769712003275,-300.0,9.664e-05,2]
[404005515,1769712003305,-300.0,9.664e-05,2]
[404005516,1769712003337,-300.0,9.664e-05,2]
[404005517,1769712003368,-300.0,9.664e-05,2]
[404005518,1769712003400,-300.0,9.664e-05,2]
[404005519,1769712003435,-300.0,9.664e-05,2]
[404005520,1769712003467,-300.0,9.664e-05,2]
[404005521,1769712003500,-300.0,9.664e-05,2]
[404005522,1769712003664,-600.0,9.664e-05,2]
[404005523,1769712004198,555.0,9.664e-05,2]
[404005524,1769712025240,-4000000.0,0.00034758,20]
[404005525,1769712050896,10000.01,9.562e-05,2]
[404005526,1769712050930,10000.01,9.562e-05,2]
[404005527,1769712050961,10000.01,9.562e-05,2]
[404005528,1769712051000,10000.01,9.562e-05,2]
[404005529,1769712051034,10000.01,9.562e-05,2]
[404005530,1769712051068,10000.01,9.562e-05,2]
[404005531,1769712051102,10000.01,9.562e-05,2]
[404005532,1769712051135,10000.01,9.562e-05,2]
[404005533,1769712051170,10000.01,9.562e-05,2]
[404005534,1769712051203,10000.01,9.562e-05,2]
[404005535,1769712064964,-9445.01,9.562e-05,2]
[404005536,1769712065320,-10000.01,9.562e-05,2]
[404005537,1769712065454,-10000.01,9.562e-05,2]
[404005538,1769712065599,-10000.01,9.562e-05,2]
[404005539,1769712065729,-10000.01,9.562e-05,2]
[404005540,1769712065844,-10000.01,9.562e-05,2]
[404005541,1769712065983,-10000.01,9.562e-05,2]
[404005542,1769712066227,-10000.01,9.562e-05,2]
[404005543,1769712066351,-10000.01,9.562e-05,2]
[404005544,1769712066452,-10000.01,9.562e-05,2]
[404005545,1769712071879,-5000000.0,0.00034758,20]
[404005546,1769712077284,-10000.01,9.562e-05,2]
[404005547,1769712077405,-10000.01,9.562e-05,2]
[404005548,1769712077526,-10000.01,9.562e-05,2]
[404005549,1769712077655,-10000.01,9.562e-05,2]
[404005550,1769712077777,-10000.01,9.562e-05,2]
[404005551,1769712077915,-10000.01,9.562e-05,2]
[404005552,1769712078064,-10000.01,9.562e-05,2]
[404005553,1769712078179,-10000.01,9.562e-05,2]
[404005554,1769712078303,-10000.01,9.562e-05,2]
[404005555,1769712078788,-10000.01,9.562e-05,2]
[404005556,1769712097995,-5000000.0,0.00034758,20]
[404005557,1769712111681,-1803.60651086,9.277e-05,2]
[404005558,1769712284748,5000.0,9.175e-05,2]
[404005559,1769712292876,5000.0,9.175e-05,2]
[404005560,1769712308018,0.01,9.175e-05,2]
[404005561,1769712308043,4999.99,9.175e-05,2]
[404005562,1769712315826,5000.0,9.175e-05,2]
[404005563,1769712331109,0.02,9.175e-05,2]
[404005564,1769712331131,4999.98,9.175e-05,2]
[404005565,1769712339303,5000.0,9.175e-05,2]
[404005566,1769712354908,0.03,9.175e-05,2]
[404005567,1769712354932,4999.97,9.175e-05,2]
[404005568,1769712363565,5000.0,9.175e-05,2]
[404005569,1769712394221,-207.93064547,8.993e-05,2]
[404005570,1769712410713,-207.93064547,9.084e-05,2]
[404005571,1769712411481,4234.64825349,8.993e-05,2]
[404005572,1769712435291,151.0,0.00034763,31]
[404005573,1769712435586,151.0,0.00034763,31]
[404005574,1769712435998,151.0,0.00034763,31]
[404005575,1769712436142,151.0,0.00034763,31]
[404005576,1769712436444,293.135766,0.00034763,31]
[404005579,1769712442258,-5000.0,9.084e-05,2]
[404005581,1769712449618,177.361493,0.00034763,31]
[404005582,1769712449892,177.361493,0.00034763,31]
[404005583,1769712450186,177.361493,0.00034763,31]
[404005584,1769712450473,177.361493,0.00034763,31]
[404005585,1769712450736,203.068722,0.00034763,31]
[404005586,1769712450773,177.361493,0.00034763,31]
[404005587,1769712450854,0.01,9.084e-05,2]
[404005588,1769712450877,4999.99,9.084e-05,2]
[404005589,1769712451023,203.068722,0.00034763,31]
[404005590,1769712451062,177.361493,0.00034763,31]
[404005591,1769712451313,177.361493,0.00034763,31]
[404005592,1769712451393,203.068722,0.00034763,31]
[404005593,1769712451698,203.068722,0.00034763,31]
[404005594,1769712452009,203.068722,0.00034763,31]
[404005595,1769712452292,203.068722,0.00034763,31]
[404005596,1769712452581,203.068722,0.00034763,31]
[404005597,1769712452866,203.068722,0.00034763,31]
[404005598,1769712453155,203.068722,0.00034763,31]
[404005599,1769712453237,177.361493,0.00034763,31]
[404005600,1769712453438,203.068722,0.00034763,31]
[404005601,1769712453732,203.068722,0.00034763,31]
[404005602,1769712454014,203.068722,0.00034763,31]
[404005603,1769712454304,203.068722,0.00034763,31]
[404005604,1769712454565,177.361493,0.00034763,31]
[404005605,1769712454603,203.068722,0.00034763,31]
[404005606,1769712454868,203.068722,0.00034763,31]
[404005607,1769712455152,203.068722,0.00034763,31]
[404005608,1769712455435,203.068722,0.00034763,31]
[404005609,1769712455734,203.068722,0.00034763,31]
[404005610,1769712456029,203.068722,0.00034763,31]
[404005611,1769712456321,203.068726,0.00034763,31]
[404005612,1769712457056,177.361493,0.00034763,31]
[404005613,1769712457348,177.361493,0.00034763,31]
[404005614,1769712457637,177.361493,0.00034763,31]
[404005615,1769712457922,177.361493,0.00034763,31]
[404005616,1769712458051,288.527675,0.00034763,31]
[404005617,1769712458204,177.361493,0.00034763,31]
[404005618,1769712458331,288.527675,0.00034763,31]
[404005619,1769712458487,177.361493,0.00034763,31]
[404005620,1769712458614,288.527675,0.00034763,31]
[404005621,1769712458767,177.361493,0.00034763,31]
[404005622,1769712458910,288.527675,0.00034763,31]
[404005623,1769712459040,177.361493,0.00034763,31]
[404005624,1769712459194,288.527675,0.00034763,31]
[404005625,1769712459327,177.361493,0.00034763,31]
[404005626,1769712459605,288.527675,0.00034763,31]
[404005627,1769712459642,177.361493,0.00034763,31]
[404005628,1769712459766,288.527675,0.00034763,31]
[404005629,1769712459894,177.361499,0.00034763,31]
[404005630,1769712460055,288.527675,0.00034763,31]
[404005631,1769712460325,288.527675,0.00034763,31]
[404005632,1769712460614,288.527675,0.00034763,31]
[404005633,1769712460883,288.527675,0.00034763,31]
[404005634,1769712461181,288.527675,0.00034763,31]
[404005635,1769712461483,288.527675,0.00034763,31]
[404005636,1769712461806,288.527675,0.00034763,31]
[404005637,1769712462088,288.527675,0.00034763,31]
[404005638,1769712462381,288.527675,0.00034763,31]
[404005639,1769712462663,288.527675,0.00034763,31]
[404005640,1769712462946,288.527675,0.00034763,31]
[404005641,1769712463224,288.527675,0.00034763,31]
[404005642,1769712463504,288.527678,0.00034763,31]
[404005643,1769712464536,392.957697,0.00034763,31]
[404005644,1769712464872,392.957697,0.00034763,31]
[404005645,1769712465233,392.957697,0.00034763,31]
[404005646,1769712465463,392.957697,0.00034763,31]
[404005647,1769712465762,392.957697,0.00034763,31]
[404005648,1769712466065,392.957697,0.00034763,31]
[404005649,1769712466395,392.957697,0.00034763,31]
[404005650,1769712466708,392.957697,0.00034763,31]
[404005651,1769712466986,392.957697,0.00034763,31]
[404005652,1769712467292,392.957697,0.00034763,31]
[404005653,1769712467569,392.957697,0.00034763,31]
[404005654,1769712467847,392.957697,0.00034763,31]
[404005655,1769712468148,392.957697,0.00034763,31]
[404005656,1769712468426,392.957697,0.00034763,31]
[404005657,1769712468701,392.957697,0.00034763,31]
[404005658,1769712468982,392.957697,0.00034763,31]
[404005659,1769712469260,392.957697,0.00034763,31]
[404005660,1769712469541,392.957697,0.00034763,31]
[404005661,1769712469831,392.957697,0.00034763,31]
[404005662,1769712470098,392.95769,0.00034763,31]
[404005663,1769712474776,154.353886,0.00034763,31]
[404005664,1769712475213,154.353886,0.00034763,31]
[404005665,1769712475528,154.353886,0.00034763,31]
[404005666,1769712475816,154.353886,0.00034763,31]
[404005667,1769712476094,154.353886,0.00034763,31]
[404005668,1769712476371,154.353886,0.00034763,31]
[404005669,1769712476651,154.353886,0.00034763,31]
[404005670,1769712476935,154.353886,0.00034763,31]
[404005671,1769712477247,154.353886,0.00034763,31]
[404005672,1769712477566,154.353886,0.00034763,31]
[404005673,1769712477852,154.353886,0.00034763,31]
[404005674,1769712478130,154.353886,0.00034763,31]
[404005675,1769712478409,154.353886,0.00034763,31]
[404005676,1769712478724,154.353886,0.00034763,31]
[404005677,1769712478978,154.353886,0.00034763,31]
[404005678,1769712479277,154.353886,0.00034763,31]
[404005679,1769712479567,154.353886,0.00034763,31]
[404005680,1769712479853,154.353886,0.00034763,31]
[404005681,1769712480132,154.353886,0.00034763,31]
[404005682,1769712480430,154.353881,0.00034763,31]
[404005683,1769712487554,500.0,0.00034763,30]
[404005684,1769712487747,174.34186986,0.00034763,30]
[404005685,1769712487784,250.0,0.00034763,30]
[404005686,1769712487844,151.0,0.00034763,30]
[404005687,1769712488102,151.0,0.00034763,30]
[404005688,1769712488170,518.5,0.00034763,30]
[404005689,1769712488499,151.0,0.00034763,30]
[404005690,1769712488742,156.587,0.00034763,30]
[404005691,1769712489343,151.0,0.00034763,30]
[404005692,1769712489971,151.0,0.00034763,30]
[404005693,1769712490373,414.0,0.00034763,30]
[404005694,1769712491008,429.318,0.00034763,30]
[404005695,1769712491630,445.202766,0.00034763,30]
[404005696,1769712492272,445.202766,0.00034763,30]
[404005697,1769712493205,337.15308738,0.00034763,30]
[404005698,1769712493662,151.0,0.00034763,30]
[404005699,1769712493908,290.0,0.00034763,30]
[404005700,1769712494328,156.587,0.00034763,30]
[404005701,1769712494628,191.95499,0.00034763,31]
[404005702,1769712494724,-207.93064547,9.175e-05,2]
[404005703,1769712494954,162.380719,0.00034763,30]
[404005704,1769712495183,157.47590888,0.00034763,30]
[404005705,1769712495570,168.3888056,0.00034763,30]
[404005706,1769712496215,174.61919141,0.00034763,30]
[404005707,1769712496830,181.08010149,0.00034763,30]
[404005708,1769712497241,396.61291757,0.00034763,30]
[404005709,1769712497474,187.78006525,0.00034763,30]
[404005710,1769712498115,194.72792766,0.00034763,30]
[404005711,1769712498324,1000.0,0.00034763,30]
[404005712,1769712498866,201.93286099,0.00034763,30]
[404005713,1769712498950,1000.0,0.00034763,30]
[404005714,1769712499530,209.40437684,0.00034763,30]
[404005715,1769712500167,217.15233878,0.00034763,30]
[404005716,1769712500793,225.18697532,0.00034763,30]
[404005717,1769712501428,233.51889341,0.00034763,30]
[404005718,1769712502062,242.15909246,0.00034763,30]
[404005719,1769712502688,251.11897888,0.00034763,30]
[404005720,1769712503292,260.4103811,0.00034763,30]
[404005721,1769712504420,270.0455652,0.00034763,30]
[404005722,1769712505104,280.03725112,0.00034763,30]
[404005723,1769712505773,290.39862941,0.00034763,30]
[404005724,1769712505919,500.64736132,0.00034763,30]
[404005725,1769712506446,290.39862941,0.00034763,30]
[404005726,1769712508083,261.846698,0.00034763,31]
[404005727,1769712530463,291.455011,0.00034763,31]
[404005728,1769712530769,291.455011,0.00034763,31]
[404005729,1769712531043,291.455011,0.00034763,31]
[404005730,1769712531319,291.455011,0.00034763,31]
[404005731,1769712531597,291.455011,0.00034763,31]
[404005732,1769712531886,291.455011,0.00034763,31]
[404005733,1769712532158,291.455011,0.00034763,31]
[404005734,1769712532435,291.455011,0.00034763,31]
[404005735,1769712532713,291.455011,0.00034763,31]
[404005736,1769712533016,291.455011,0.00034763,31]
[404005737,1769712533357,291.455011,0.00034763,31]
[404005738,1769712534000,291.455011,0.00034763,31]
[404005739,1769712534938,291.455011,0.00034763,31]
[404005740,1769712535221,291.455011,0.00034763,31]
[404005741,1769712535513,291.455011,0.00034763,31]
[404005742,1769712535819,291.455011,0.00034763,31]
[404005743,1769712536103,291.455011,0.00034763,31]
[404005744,1769712536623,291.455011,0.00034763,31]
[404005745,1769712536901,291.455011,0.00034763,31]
[404005746,1769712537198,291.455008,0.00034763,31]
[404005774,1769712550646,500.0,0.00034756,60]
[404005780,1769712550911,500.0,0.00034756,60]
[404005781,1769712551160,500.0,0.00034756,60]
[404005782,1769712551384,526.72866427,0.00034756,60]
[404005784,1769712565136,151.0,0.00034756,31]
[404005798,1769712575422,561.0,0.00034756,30]
[404005799,1769712581667,500.0,0.00034756,60]
[404005800,1769712581924,500.0,0.00034756,60]
[404005801,1769712582169,500.0,0.00034756,60]
[404005803,1769712582406,500.0,0.00034756,60]
[404005804,1769712582683,500.0,0.00034756,60]
[404005805,1769712582913,500.0,0.00034756,60]
[404005806,1769712583163,500.0,0.00034756,60]
[404005807,1769712583427,500.0,0.00034756,60]
[404005808,1769712583676,500.0,0.00034756,60]
[404005809,1769712583967,572.44761677,0.00034756,60]
[404005810,1769712595573,500.0,0.00034756,31]
[404005811,1769712595840,500.0,0.00034756,31]
[404005812,1769712596099,500.0,0.00034756,31]
[404005813,1769712596355,500.0,0.00034756,31]
[404005814,1769712596632,500.0,0.00034756,31]
[404005815,1769712596882,500.0,0.00034756,31]
[404005816,1769712597304,500.0,0.00034756,31]
[404005817,1769712597435,500.0,0.00034756,31]
[404005819,1769712608081,500.0,0.00034756,30]
[404005820,1769712608157,160.0,0.00034756,30]
[404005821,1769712608195,151.0,0.00034756,30]
[404005822,1769712608234,250.0,0.00034756,30]
[404005823,1769712608272,151.0,0.00034756,30]
[404005824,1769712608686,250.0,0.00034756,30]
[404005825,1769712608770,518.5,0.00034756,30]
[404005826,1769712608809,160.0,0.00034756,30]
[404005827,1769712608864,250.0,0.00034756,30]
[404005828,1769712608901,151.0,0.00034756,30]
[404005829,1769712608940,156.587,0.00034756,30]
[404005830,1769712609405,160.0,0.00034756,30]
[404005831,1769712609440,537.6845,0.00034756,30]
[404005832,1769712609495,151.0,0.00034756,30]
[404005833,1769712609532,162.380719,0.00034756,30]
[404005834,1769712609568,250.0,0.00034756,30]
[404005835,1769712610044,160.0,0.00034756,30]
[404005836,1769712610080,557.5788265,0.00034756,30]
[404005837,1769712610117,250.0,0.00034756,30]
[404005838,1769712610152,168.3888056,0.00034756,30]
[404005839,1769712610634,578.20924308,0.00034756,30]
[404005840,1769712610670,160.0,0.00034756,30]
[404005841,1769712610708,250.0,0.00034756,30]
[404005842,1769712610756,174.61919141,0.00034756,30]
[404005843,1769712611262,599.60298507,0.00034756,30]
[404005844,1769712611297,160.0,0.00034756,30]
[404005845,1769712611331,250.0,0.00034756,30]
[404005846,1769712611409,174.61919141,0.00034756,30]
[404005847,1769712611913,621.78829552,0.00034756,30]
[404005848,1769712612054,250.0,0.00034756,30]
[404005849,1769712612517,644.79446246,0.00034756,30]
[404005850,1769712612651,250.0,0.00034756,30]
[404005851,1769712613110,668.65185757,0.00034756,30]
[404005852,1769712613401,250.0,0.00034756,30]
[404005853,1769712613756,693.3919763,0.00034756,30]
[404005854,1769712614064,250.0,0.00034756,30]
[404005855,1769712614427,151.0,0.00034756,30]
[404005856,1769712614646,250.0,0.00034756,30]
[404005858,1769712615079,151.0,0.00034756,30]
[404005859,1769712615245,250.0,0.00034756,30]
[404005860,1769712615348,215.62244385,0.00034756,30]
[404005861,1769712615779,151.0,0.00034756,30]
[404005862,1769712615863,250.0,0.00034756,30]
[404005863,1769712616398,151.0,0.00034756,30]
[404005864,1769712616452,250.0,0.00034756,30]
[404005865,1769712617008,151.0,0.00034756,30]
[404005866,1769712617293,250.0,0.00034756,30]
[404005867,1769712617664,151.0,0.00034756,30]
[404005868,1769712618179,250.0,0.00034756,30]
[404005869,1769712618260,151.0,0.00034756,30]
[404005870,1769712618674,151.0,0.00034756,30]
[404005871,1769712618800,250.0,0.00034756,30]
[404005872,1769712618973,151.0,0.00034756,30]
[404005873,1769712619321,156.587,0.00034756,30]
[404005874,1769712619402,250.0,0.00034756,30]
[404005875,1769712619492,151.0,0.00034756,30]
[404005876,1769712619945,162.380719,0.00034756,30]
[404005877,1769712620593,168.3888056,0.00034756,30]
[404005878,1769712621197,174.61919141,0.00034756,30]
[404005879,1769712621250,-203.259,9.371e-05,2]
[404005880,1769712621278,-551.0,9.371e-05,2]
[404005881,1769712621866,181.08010149,0.00034756,30]
[404005882,1769712621936,151.0,0.00034756,30]
[404005883,1769712622521,187.78006525,0.00034756,30]
[404005884,1769712622559,500.0,0.00034756,30]
[404005885,1769712622598,151.0,0.00034756,30]
[404005886,1769712623192,500.0,0.00034756,30]
[404005887,1769712623231,194.72792766,0.00034756,30]
[404005888,1769712623269,151.0,0.00034756,30]
[404005889,1769712623817,500.0,0.00034756,30]
[404005890,1769712623871,151.0,0.00034756,30]
[404005891,1769712623913,194.72792766,0.00034756,30]
[404005892,1769712624470,151.0,0.00034756,31]
[404005893,1769712624515,500.0,0.00034756,30]
[404005894,1769712624558,151.0,0.00034756,30]
[404005895,1769712624782,267.073494,0.00034756,31]
[404005896,1769712625183,151.0,0.00034756,30]
[404005897,1769712625890,151.0,0.00034756,30]
[404005898,1769712626550,151.0,0.00034756,30]
[404005899,1769712627673,151.0,0.00034756,31]
[404005900,1769712627967,151.0,0.00034756,31]
[404005901,1769712628131,1000.0,0.00034756,30]
[404005902,1769712628235,151.0,0.00034756,31]
[404005903,1769712628510,151.0,0.00034756,31]
[404005904,1769712628776,1000.0,0.00034756,30]
[404005905,1769712629204,242.0706,0.000294,120]
[404005906,1769712629256,151.0,0.00034756,31]
[404005907,1769712629508,1000.0,0.00034756,30]
[404005908,1769712629558,151.0,0.00034756,31]
[404005909,1769712629863,151.0,0.00034756,31]
[404005910,1769712630082,1000.0,0.00034756,30]
[404005911,1769712630153,250.0,0.00034756,30]
[404005912,1769712630201,151.0,0.00034756,31]
[404005913,1769712630398,230.93746,0.00034756,31]
[404005914,1769712630470,151.0,0.00034756,31]
[404005915,1769712630725,230.93746,0.00034756,31]
[404005916,1769712630775,1000.0,0.00034756,30]
[404005917,1769712630823,151.0,0.00034756,31]
[404005918,1769712630868,250.0,0.00034756,30]
[404005920,1769712631571,151.0,0.00034756,31]
[404005921,1769712631614,230.93746,0.00034756,31]
[404005922,1769712631656,151.0,0.00034756,31]
[404005923,1769712631695,230.93746,0.00034756,31]
[404005924,1769712631733,250.0,0.00034756,30]
[404005925,1769712631813,151.0,0.00034756,31]
[404005926,1769712631880,230.93746,0.00034756,31]
[404005929,1769712632031,227.166415,0.00034756,31]
[404005930,1769712632097,230.93746,0.00034756,31]
[404005931,1769712632227,230.93746,0.00034756,31]
[404005953,1769712632519,230.93746,0.00034756,31]
[404005963,1769712632605,-300.0,9.462e-05,2]
[404005965,1769712632615,-300.0,9.462e-05,2]
[404005967,1769712632625,-500.0,9.462e-05,2]
[404005969,1769712632634,-500.0,9.462e-05,2]
[404005971,1769712632643,-296.32429182,9.462e-05,2]
[404005973,1769712632652,-500.0,9.462e-05,2]
[404005975,1769712632661,-154.90532946,9.462e-05,2]
[404005979,1769712632680,-500.0,9.462e-05,2]
[404005981,1769712632690,-500.0,9.462e-05,2]
[404005984,1769712632705,-500.0,9.462e-05,2]
[404005986,1769712632715,-500.0,9.462e-05,2]
[404005987,1769712632725,-152.49813814,9.462e-05,2]
[404005989,1769712632735,-355.78506178,9.462e-05,2]
[404005991,1769712632744,-500.0,9.462e-05,2]
[404005993,1769712632754,-500.0,9.462e-05,2]
[404005994,1769712632763,-500.0,9.462e-05,2]
[404005996,1769712632772,-500.0,9.462e-05,2]
[404005998,1769712632782,-500.0,9.462e-05,2]
[404006000,1769712632791,-506.67457545,9.462e-05,2]
[404006002,1769712632801,-500.0,9.462e-05,2]
[404006003,1769712632811,-500.0,9.462e-05,2]
[404006004,1769712632820,-500.0,9.462e-05,2]
[404006006,1769712632829,-500.0,9.462e-05,2]
[404006008,1769712632842,-245.0,9.462e-05,2]
[404006010,1769712632851,-500.0,9.462e-05,2]
[404006012,1769712632861,-500.0,9.462e-05,2]
[404006014,1769712632870,-500.0,9.462e-05,2]
[404006016,1769712632881,-500.0,9.462e-05,2]
[404006018,1769712632890,-500.0,9.462e-05,2]
[404006020,1769712632900,-500.0,9.462e-05,2]
[404006022,1769712632909,-500.0,9.462e-05,2]
[404006023,1769712632919,-500.0,9.462e-05,2]
[404006025,1769712632929,-500.0,9.462e-05,2]
[404006027,1769712632938,-500.0,9.462e-05,2]
[404006030,1769712632948,-500.0,9.462e-05,2]
[404006032,1769712632958,-500.0,9.462e-05,2]
[404006034,1769712632969,-500.0,9.462e-05,2]
[404006036,1769712632979,-500.0,9.462e-05,2]
[404006038,1769712632989,-500.0,9.462e-05,2]
[404006040,1769712632999,-500.0,9.462e-05,2]
[404006041,1769712633009,-500.0,9.462e-05,2]
[404006043,1769712633019,-500.0,9.462e-05,2]